{"text_format":"3","workbook":"xlsx","n_sheets":2,"sheets":["เริ่มต้น","แผ่นเวลารายปี"],"not_rendered":{"defined_names":2},"read":"whole","date_system":"1900"}

{"sheet":"เริ่มต้น","index":0,"n_rows":8,"n_cols":2,"rows_kept":8}
[null,"เกี่ยวกับเทมเพลตนี้"]
[null,"ติดตามเวลาทำงานของคุณเป็นรายวัน รายสัปดาห์ รายเดือน และรายปีในบัตรลงเวลาพนักงานนี้"]
[null,"กรอกข้อมูลพื้นฐาน เช่น ชื่อพนักงาน ชื่อผู้จัดการ ที่อยู่อีเมล และหมายเลขโทรศัพท์ "]
[null,"เพิ่มเวลาของคุณลงในตารางของแต่ละเดือน บันทึกชั่วโมงทำงานปกติและชั่วโมงทำงานล่วงเวลาในคอลัมน์แยกต่างหากสำหรับแต่ละวันทำงานของแต่ละสัปดาห์ "]
[null,"ชั่วโมงทำงานทั้งหมด ชั่วโมงทำงานปกติ และชั่วโมงทำงานล่วงเวลาจะถูกคำนวณโดยอัตโนมัติ "]
[null,"หมายเหตุ:"]
[null,"คำแนะนำเพิ่มเติมจะอยู่ในคอลัมน์ A ในเวิร์กชีต แผ่นเวลารายปี ข้อความนี้ได้ถูกซ่อนไว้โดยตั้งใจ เมื่อต้องการเอาข้อความออก ให้เลือกคอลัมน์ A แล้วเลือก ลบ เมื่อต้องการยกเลิกการซ่อนข้อความ ให้เลือกคอลัมน์ A แล้วเปลี่ยนสีฟอนต์ "]
[null,"เมื่อต้องการเรียนรู้เพิ่มเติมเกี่ยวกับตาราง ให้กด SHIFT แล้วตามด้วย F10 ภายในตาราง แล้วเลือกตัวเลือก ตาราง จากนั้นเลือก ข้อความแสดงแทน"]

{"sheet":"แผ่นเวลารายปี","index":1,"n_rows":132,"n_cols":15,"rows_kept":132,"merged":[[0,1,0,2],[0,4,0,14],[10,6,10,7],[21,6,21,7],[32,6,32,7],[33,4,33,14],[43,6,43,7],[54,6,54,7],[65,6,65,7],[66,4,66,14],[76,6,76,7],[87,6,87,7],[98,6,98,7],[99,4,99,14],[109,6,109,7],[120,6,120,7],[131,6,131,7]]}
["สร้างแผ่นเวลาพนักงานแบบรายวัน รายสัปดาห์ รายเดือน หรือรายปีในเวิร์กชีตนี้ \nคำแนะนำที่เป็นประโยชน์เกี่ยวกับวิธีใช้เวิร์กบุ๊กนี้อยู่ในเซลล์ในคอลัมน์นี้ ใช้ลูกศรลงเพื่อเริ่มต้นใช้งาน\nชื่อของเวิร์กชีตนี้อยู่ในเซลล์ที่ด้านขวา และส่วนหัวของไตรมาสที่มีเดือนมกราคม กุมภาพันธ์ มีนาคมอยู่ในเซลล์ E1","พนักงาน \nบัตรลงเวลา",null,null,"มกราคม กุมภาพันธ์ มีนาคม      พนักงาน บัตรลงเวลา: รายวัน รายสัปดาห์ รายเดือน รายปี"]
["ใส่ชื่อพนักงานในเซลล์ C2 และทั่วไป และชั่วโมงทำงานล่วงเวลาในตารางเดือนมกราคมที่เริ่มต้นในเซลล์ E2","ชื่อพนักงาน:",null,null,"มกราคม","สัปดาห์ 1","งานล่วงเวลา","สัปดาห์ 2","งานล่วงเวลา  ","สัปดาห์ 3","งานล่วงเวลา   ","สัปดาห์ 4","งานล่วงเวลา    ","สัปดาห์ 5","งานล่วงเวลา     "]
["ใส่ชื่อผู้จัดการในเซลล์ C3","ผู้จัดการ:",null,null,"วันจันทร์",{"v":8,"d":"8.0"}]
["ใส่ที่อยู่อีเมลในเซลล์ C4","อีเมล:",null,null,"วันอังคาร",{"v":8,"d":"8.0"},{"v":2,"d":"2.0"}]
["ใส่หมายเลขโทรศัพท์ในเซลล์ C5 คำแนะนำถัดไปอยู่ในเซลล์ A9","หมายเลขโทรศัพท์:",null,null,"วันพุธ"]
[{"$nulls":4},"วันพฤหัสบดี"]
[{"$nulls":4},"วันศุกร์"]
[{"$nulls":4},"วันเสาร์"]
["ผลรวมชั่วโมงทำงานปกติแบบรายปีจะถูกคำนวณในเซลล์ C9 โดยอัตโนมัติ","ชม. ทำงานปกติ:",{"$f":"ชั่วโมงปกติ","v":31},null,"วันอาทิตย์"]
["ผลรวมชั่วโมงทำงานล่วงเวลาแบบรายปีจะถูกคำนวณในเซลล์ C10 โดยอัตโนมัติ","ชม. ทำงานล่วงเวลา:",{"$f":"ชั่วโมงล่วงเวลา","v":4},null,"ผลรวมชั่วโมงทำงานรายสัปดาห์",{"$f":"SUM(F3:F9)","v":{"v":16,"d":"16.0"}},{"v":2,"d":"2.0"},{"v":0,"d":"0.0"},{"v":0,"d":"0.0"},{"v":0,"d":"0.0"},{"v":0,"d":"0.0"},{"v":0,"d":"0.0"},{"v":0,"d":"0.0"},{"v":0,"d":"0.0"},{"v":0,"d":"0.0"}]
["ยอดรวมชั่วโมงทำงานทั้งหมดแบบรายปีจะถูกคำนวณในเซลล์ C11 โดยอัตโนมัติ ผลรวมชั่วโมงทำงานปกติของเดือนมกราคมในเซลล์ F11 และผลรวมชั่วโมงทำงานล่วงเวลาของเดือนมกราคมในเซลล์ I11 จะถูกคำนวนโดยอัตโนมัติ คำแนะนำถัดไปอยู่ในเซลล์ A13","ผลรวม",{"$f":"ชั่วโมงปกติ+ชั่วโมงล่วงเวลา","v":35},null,{"$f":"TEXT(DATEVALUE(มกราคม[[#Headers],[มกราคม]]&\"  \"&YEAR(TODAY())),\"mmm\")&\" ผลรวม: ชั่วโมงทำงานปกติ\"","v":"ม.ค. ผลรวม: ชั่วโมงทำงานปกติ"},{"$f":"SUM(มกราคม[สัปดาห์ 1],มกราคม[สัปดาห์ 2],มกราคม[สัปดาห์ 3],มกราคม[สัปดาห์ 4],มกราคม[สัปดาห์ 5])","v":{"v":16,"d":"16.0"}},{"$f":"TEXT(DATEVALUE(มกราคม[[#Headers],[มกราคม]]&\"  \"&YEAR(TODAY())),\"mmm\")&\" ผลรวม: งานล่วงเวลา\"","v":"ม.ค. ผลรวม: งานล่วงเวลา"},null,{"$f":"SUM(มกราคม[งานล่วงเวลา],มกราคม[[งานล่วงเวลา  ]],มกราคม[[งานล่วงเวลา   ]],มกราคม[[งานล่วงเวลา    ]],มกราคม[[งานล่วงเวลา     ]])","v":{"v":2,"d":"2.0"}}]
[]
["ใส่ชั่วโมงทำงานปกติและแบบล่วงเวลาในตารางเดือนกุมภาพันธ์ที่เริ่มต้นในเซลล์ E13 คำแนะนำถัดไปอยู่ในเซลล์ A22",{"$nulls":3},"กุมภาพันธ์","สัปดาห์ 1","งานล่วงเวลา","สัปดาห์ 2","งานล่วงเวลา  ","สัปดาห์ 3","งานล่วงเวลา   ","สัปดาห์ 4","งานล่วงเวลา    ","สัปดาห์ 5","งานล่วงเวลา     "]
[{"$nulls":4},"วันจันทร์",{"v":8,"d":"8.0"}]
[{"$nulls":4},"วันอังคาร",{"v":7,"d":"7.0"},{"v":2,"d":"2.0"}]
[{"$nulls":4},"วันพุธ"]
[{"$nulls":4},"วันพฤหัสบดี"]
[{"$nulls":4},"วันศุกร์"]
[{"$nulls":4},"วันเสาร์"]
[{"$nulls":4},"วันอาทิตย์"]
[{"$nulls":4},"ผลรวมชั่วโมงทำงานรายสัปดาห์",{"$f":"SUM(F14:F20)","v":{"v":15,"d":"15.0"}},{"v":2,"d":"2.0"},{"v":0,"d":"0.0"},{"v":0,"d":"0.0"},{"v":0,"d":"0.0"},{"v":0,"d":"0.0"},{"v":0,"d":"0.0"},{"v":0,"d":"0.0"},{"v":0,"d":"0.0"},{"v":0,"d":"0.0"}]
["ผลรวมชั่วโมงทำงานปกติของเดือนกุมภาพันธ์ในเซลล์ F22 และผลรวมชั่วโมงทำงานล่วงเวลาของเดือนกุมภาพันธ์ในเซลล์ I22 จะถูกคำนวนโดยอัตโนมัติ คำแนะนำถัดไปอยู่ในเซลล์ A24",{"$nulls":3},{"$f":"TEXT(DATEVALUE(กุมภาพันธ์[[#Headers],[กุมภาพันธ์]]&\"  \"&YEAR(TODAY())),\"mmm\")&\" ผลรวม: ชั่วโมงทำงานปกติ\"","v":"ก.พ. ผลรวม: ชั่วโมงทำงานปกติ"},{"$f":"SUM(กุมภาพันธ์[สัปดาห์ 1],กุมภาพันธ์[สัปดาห์ 2],กุมภาพันธ์[สัปดาห์ 3],กุมภาพันธ์[สัปดาห์ 4],กุมภาพันธ์[สัปดาห์ 5])","v":{"v":15,"d":"15.0"}},{"$f":"TEXT(DATEVALUE(กุมภาพันธ์[[#Headers],[กุมภาพันธ์]]&\" \"&YEAR(TODAY())),\"mmm\")&\" ผลรวม: งานล่วงเวลา\"","v":"ก.พ. ผลรวม: งานล่วงเวลา"},null,{"$f":"SUM(กุมภาพันธ์[งานล่วงเวลา],กุมภาพันธ์[[งานล่วงเวลา  ]],กุมภาพันธ์[[งานล่วงเวลา   ]],กุมภาพันธ์[[งานล่วงเวลา    ]],กุมภาพันธ์[[งานล่วงเวลา     ]])","v":{"v":2,"d":"2.0"}}]
[]
["ใส่ชั่วโมงทำงานปกติและแบบล่วงเวลาในตารางเดือนมีนาคมที่เริ่มต้นในเซลล์ E24 คำแนะนำถัดไปอยู่ในเซลล์ A33",{"$nulls":3},"มีนาคม","สัปดาห์ 1","งานล่วงเวลา","สัปดาห์ 2","งานล่วงเวลา ","สัปดาห์ 3","งานล่วงเวลา  ","สัปดาห์ 4","งานล่วงเวลา    ","สัปดาห์ 5","งานล่วงเวลา     "]
[{"$nulls":4},"วันจันทร์"]
[{"$nulls":4},"วันอังคาร"]
[{"$nulls":4},"วันพุธ"]
[{"$nulls":4},"วันพฤหัสบดี"]
[{"$nulls":4},"วันศุกร์"]
[{"$nulls":4},"วันเสาร์"]
[{"$nulls":4},"วันอาทิตย์"]
[{"$nulls":4},"ผลรวมชั่วโมงทำงานรายสัปดาห์",{"$f":"SUM(F25:F31)","v":{"v":0,"d":"0.0"}},{"v":0,"d":"0.0"},{"v":0,"d":"0.0"},{"v":0,"d":"0.0"},{"v":0,"d":"0.0"},{"v":0,"d":"0.0"},{"v":0,"d":"0.0"},{"v":0,"d":"0.0"},{"v":0,"d":"0.0"},{"v":0,"d":"0.0"}]
["ผลรวมชั่วโมงทำงานปกติของเดือนมีนาคมในเซลล์ F33 และผลรวมชั่วโมงทำงานล่วงเวลาของเดือนมีนาคมในเซลล์ I33 จะถูกคำนวนโดยอัตโนมัติ",{"$nulls":3},{"$f":"TEXT(DATEVALUE(มีนาคม[[#Headers],[มีนาคม]]&\" \"&YEAR(TODAY())),\"mmm\")&\" ผลรวม: ชั่วโมงทำงานปกติ\"","v":"มี.ค. ผลรวม: ชั่วโมงทำงานปกติ"},{"$f":"SUM(มีนาคม[สัปดาห์ 1],มีนาคม[สัปดาห์ 2],มีนาคม[สัปดาห์ 3],มีนาคม[สัปดาห์ 4],มีนาคม[สัปดาห์ 5])","v":{"v":0,"d":"0.0"}},{"$f":"TEXT(DATEVALUE(มีนาคม[[#Headers],[มีนาคม]]&\" \"&YEAR(TODAY())),\"mmm\")&\" ผลรวม: งานล่วงเวลา\"","v":"มี.ค. ผลรวม: งานล่วงเวลา"},null,{"$f":"SUM(มีนาคม[งานล่วงเวลา],มีนาคม[[งานล่วงเวลา ]],มีนาคม[[งานล่วงเวลา  ]],มีนาคม[[งานล่วงเวลา    ]],มีนาคม[[งานล่วงเวลา     ]])","v":{"v":0,"d":"0.0"}}]
["ส่วนหัวของไตรมาสที่สองที่มีเดือนเมษายน พฤษภาคม มิถุนายนอยู่ในเซลล์ E34 ",{"$nulls":3},"เมษายน พฤษภาคม มิถุนายน      พนักงาน บัตรลงเวลา: รายวัน รายสัปดาห์ รายเดือน รายปี"]
["ใส่ชั่วโมงทำงานปกติและแบบล่วงเวลาในตารางเดือนกุมภาพันธ์ที่เริ่มต้นในเซลล์ E35 คำแนะนำถัดไปอยู่ในเซลล์ A44",{"$nulls":3},"เมษายน","สัปดาห์ 1","งานล่วงเวลา","สัปดาห์ 2","งานล่วงเวลา  ","สัปดาห์ 3","งานล่วงเวลา   ","สัปดาห์ 4","งานล่วงเวลา    ","สัปดาห์ 5","งานล่วงเวลา     "]
[{"$nulls":4},"วันจันทร์"]
[{"$nulls":4},"วันอังคาร"]
[{"$nulls":4},"วันพุธ"]
[{"$nulls":4},"วันพฤหัสบดี"]
[{"$nulls":4},"วันศุกร์"]
[{"$nulls":4},"วันเสาร์"]
[{"$nulls":4},"วันอาทิตย์"]
[{"$nulls":4},"ผลรวมชั่วโมงทำงานรายสัปดาห์",{"$f":"SUM(F36:F42)","v":{"v":0,"d":"0.0"}},{"v":0,"d":"0.0"},{"v":0,"d":"0.0"},{"v":0,"d":"0.0"},{"v":0,"d":"0.0"},{"v":0,"d":"0.0"},{"v":0,"d":"0.0"},{"v":0,"d":"0.0"},{"v":0,"d":"0.0"},{"v":0,"d":"0.0"}]
["ผลรวมชั่วโมงทำงานปกติของเดือนในเซลล์ F44 และผลรวมชั่วโมงทำงานล่วงเวลาของเมษายนในเซลล์ I44 จะถูกคำนวนโดยอัตโนมัติ คำแนะนำถัดไปอยู่ในเซลล์ A46",{"$nulls":3},{"$f":"TEXT(DATEVALUE(เมษายน[[#Headers],[เมษายน]]&\" \"&YEAR(TODAY())),\"mmm\")&\" ผลรวม: ชั่วโมงทำงานปกติ\"","v":"เม.ย. ผลรวม: ชั่วโมงทำงานปกติ"},{"$f":"SUM(เมษายน[สัปดาห์ 1],เมษายน[สัปดาห์ 2],เมษายน[สัปดาห์ 3],เมษายน[สัปดาห์ 4],เมษายน[สัปดาห์ 5])","v":{"v":0,"d":"0.0"}},{"$f":"TEXT(DATEVALUE(เมษายน[[#Headers],[เมษายน]]&\" \"&YEAR(TODAY())),\"mmm\")&\" ผลรวม: งานล่วงเวลา\"","v":"เม.ย. ผลรวม: งานล่วงเวลา"},null,{"$f":"SUM(เมษายน[งานล่วงเวลา],เมษายน[[งานล่วงเวลา  ]],เมษายน[[งานล่วงเวลา   ]],เมษายน[[งานล่วงเวลา    ]],เมษายน[[งานล่วงเวลา     ]])","v":{"v":0,"d":"0.0"}}]
[]
["ใส่ชั่วโมงทำงานปกติและแบบล่วงเวลาในตารางเดือนพฤษภาคมที่เริ่มต้นในเซลล์ E46 คำแนะนำถัดไปอยู่ในเซลล์ A55",{"$nulls":3},"พฤษภาคม","สัปดาห์ 1","งานล่วงเวลา","สัปดาห์ 2","งานล่วงเวลา  ","สัปดาห์ 3","งานล่วงเวลา   ","สัปดาห์ 4","งานล่วงเวลา    ","สัปดาห์ 5","งานล่วงเวลา     "]
[{"$nulls":4},"วันจันทร์"]
[{"$nulls":4},"วันอังคาร"]
[{"$nulls":4},"วันพุธ"]
[{"$nulls":4},"วันพฤหัสบดี"]
[{"$nulls":4},"วันศุกร์"]
[{"$nulls":4},"วันเสาร์"]
[{"$nulls":4},"วันอาทิตย์"]
[{"$nulls":4},"ผลรวมชั่วโมงทำงานรายสัปดาห์",{"$f":"SUM(F47:F53)","v":{"v":0,"d":"0.0"}},{"v":0,"d":"0.0"},{"v":0,"d":"0.0"},{"v":0,"d":"0.0"},{"v":0,"d":"0.0"},{"v":0,"d":"0.0"},{"v":0,"d":"0.0"},{"v":0,"d":"0.0"},{"v":0,"d":"0.0"},{"v":0,"d":"0.0"}]
["ผลรวมชั่วโมงทำงานปกติของเดือนพฤษภาคมในเซลล์ F55 และผลรวมชั่วโมงทำงานล่วงเวลาของเดือนพฤษภาคมในเซลล์ I55 จะถูกคำนวนโดยอัตโนมัติ คำแนะนำถัดไปอยู่ในเซลล์ A57",{"$nulls":3},{"$f":"TEXT(DATEVALUE(พฤษภาคม[[#Headers],[พฤษภาคม]]&\" \"&YEAR(TODAY())),\"mmm\")&\" ผลรวม: ชั่วโมงทำงานปกติ\"","v":"พ.ค. ผลรวม: ชั่วโมงทำงานปกติ"},{"$f":"SUM(พฤษภาคม[สัปดาห์ 1],พฤษภาคม[สัปดาห์ 2],พฤษภาคม[สัปดาห์ 3],พฤษภาคม[สัปดาห์ 4],พฤษภาคม[สัปดาห์ 5])","v":{"v":0,"d":"0.0"}},{"$f":"TEXT(DATEVALUE(พฤษภาคม[[#Headers],[พฤษภาคม]]&\" \"&YEAR(TODAY())),\"mmm\")&\" ผลรวม: งานล่วงเวลา\"","v":"พ.ค. ผลรวม: งานล่วงเวลา"},null,{"$f":"SUM(พฤษภาคม[งานล่วงเวลา],พฤษภาคม[[งานล่วงเวลา  ]],พฤษภาคม[[งานล่วงเวลา   ]],พฤษภาคม[[งานล่วงเวลา    ]],พฤษภาคม[[งานล่วงเวลา     ]])","v":{"v":0,"d":"0.0"}}]
[]
["ใส่ชั่วโมงทำงานปกติและแบบล่วงเวลาในตารางเดือนมิถุนายนที่เริ่มต้นในเซลล์ E57 คำแนะนำถัดไปอยู่ในเซลล์ A66",{"$nulls":3},"มิถุนายน","สัปดาห์ 1","งานล่วงเวลา","สัปดาห์ 2","งานล่วงเวลา  ","สัปดาห์ 3","งานล่วงเวลา   ","สัปดาห์ 4","งานล่วงเวลา    ","สัปดาห์ 5","งานล่วงเวลา     "]
[{"$nulls":4},"วันจันทร์"]
[{"$nulls":4},"วันอังคาร"]
[{"$nulls":4},"วันพุธ"]
[{"$nulls":4},"วันพฤหัสบดี"]
[{"$nulls":4},"วันศุกร์"]
[{"$nulls":4},"วันเสาร์"]
[{"$nulls":4},"วันอาทิตย์"]
[{"$nulls":4},"ผลรวมชั่วโมงทำงานรายสัปดาห์",{"$f":"SUM(F58:F64)","v":{"v":0,"d":"0.0"}},{"v":0,"d":"0.0"},{"v":0,"d":"0.0"},{"v":0,"d":"0.0"},{"v":0,"d":"0.0"},{"v":0,"d":"0.0"},{"v":0,"d":"0.0"},{"v":0,"d":"0.0"},{"v":0,"d":"0.0"},{"v":0,"d":"0.0"}]
["ผลรวมชั่วโมงทำงานปกติของเดือนมิถุนายนในเซลล์ F66 และผลรวมชั่วโมงทำงานล่วงเวลาของเดือนมิถุนายนในเซลล์ I66 จะถูกคำนวนโดยอัตโนมัติ",{"$nulls":3},{"$f":"TEXT(DATEVALUE(มิถุนายน[[#Headers],[มิถุนายน]]&\" \"&YEAR(TODAY())),\"mmm\")&\" ผลรวม: ชั่วโมงทำงานปกติ\"","v":"มิ.ย. ผลรวม: ชั่วโมงทำงานปกติ"},{"$f":"SUM(มิถุนายน[สัปดาห์ 1],มิถุนายน[สัปดาห์ 2],มิถุนายน[สัปดาห์ 3],มิถุนายน[สัปดาห์ 4],มิถุนายน[สัปดาห์ 5])","v":{"v":0,"d":"0.0"}},{"$f":"TEXT(DATEVALUE(มิถุนายน[[#Headers],[มิถุนายน]]&\" \"&YEAR(TODAY())),\"mmm\")&\" ผลรวม: งานล่วงเวลา\"","v":"มิ.ย. ผลรวม: งานล่วงเวลา"},null,{"$f":"SUM(มิถุนายน[งานล่วงเวลา],มิถุนายน[[งานล่วงเวลา  ]],มิถุนายน[[งานล่วงเวลา   ]],มิถุนายน[[งานล่วงเวลา    ]],มิถุนายน[[งานล่วงเวลา     ]])","v":{"v":0,"d":"0.0"}}]
["ส่วนหัวของไตรมาสที่สามที่มีเดือนกรกฎาคม สิงหาคม กันยายนจะอยู่ในเซลล์ E67 ",{"$nulls":3},"กรกฎาคม สิงหาคม กันยายน      พนักงาน บัตรลงเวลา: รายวัน รายสัปดาห์ รายเดือน รายปี"]
["ใส่ชั่วโมงทำงานปกติและแบบล่วงเวลาในตารางเดือนกรกฎาคมที่เริ่มต้นในเซลล์ E68 คำแนะนำถัดไปอยู่ในเซลล์ A77",{"$nulls":3},"กรกฎาคม","สัปดาห์ 1","งานล่วงเวลา","สัปดาห์ 2","งานล่วงเวลา ","สัปดาห์ 3","งานล่วงเวลา  ","สัปดาห์ 4","งานล่วงเวลา   ","สัปดาห์ 5","งานล่วงเวลา     "]
[{"$nulls":4},"วันจันทร์"]
[{"$nulls":4},"วันอังคาร"]
[{"$nulls":4},"วันพุธ"]
[{"$nulls":4},"วันพฤหัสบดี"]
[{"$nulls":4},"วันศุกร์"]
[{"$nulls":4},"วันเสาร์"]
[{"$nulls":4},"วันอาทิตย์"]
[{"$nulls":4},"ผลรวมชั่วโมงทำงานรายสัปดาห์",{"$f":"SUM(F69:F75)","v":{"v":0,"d":"0.0"}},{"v":0,"d":"0.0"},{"v":0,"d":"0.0"},{"v":0,"d":"0.0"},{"v":0,"d":"0.0"},{"v":0,"d":"0.0"},{"v":0,"d":"0.0"},{"v":0,"d":"0.0"},{"v":0,"d":"0.0"},{"v":0,"d":"0.0"}]
["ผลรวมชั่วโมงทำงานปกติของเดือนกรกฎาคมในเซลล์ F77 และผลรวมชั่วโมงทำงานล่วงเวลาของเดือนกรกฎาคมในเซลล์ I77 จะถูกคำนวนโดยอัตโนมัติ คำแนะนำถัดไปอยู่ในเซลล์ A79",{"$nulls":3},{"$f":"TEXT(DATEVALUE(กรกฎาคม[[#Headers],[กรกฎาคม]]&\" \"&YEAR(TODAY())),\"mmm\")&\" ผลรวม: ชั่วโมงทำงานปกติ\"","v":"ก.ค. ผลรวม: ชั่วโมงทำงานปกติ"},{"$f":"SUM(กรกฎาคม[สัปดาห์ 1],กรกฎาคม[สัปดาห์ 2],กรกฎาคม[สัปดาห์ 3],กรกฎาคม[สัปดาห์ 4],กรกฎาคม[สัปดาห์ 5])","v":{"v":0,"d":"0.0"}},{"$f":"TEXT(DATEVALUE(กรกฎาคม[[#Headers],[กรกฎาคม]]&\" \"&YEAR(TODAY())),\"mmm\")&\" ผลรวม: งานล่วงเวลา\"","v":"ก.ค. ผลรวม: งานล่วงเวลา"},null,{"$f":"SUM(กรกฎาคม[งานล่วงเวลา],กรกฎาคม[[งานล่วงเวลา ]],กรกฎาคม[[งานล่วงเวลา  ]],กรกฎาคม[[งานล่วงเวลา   ]],กรกฎาคม[[งานล่วงเวลา     ]])","v":{"v":0,"d":"0.0"}}]
[]
["ใส่ชั่วโมงทำงานปกติและแบบล่วงเวลาในตารางเดือนสิงหาคมที่เริ่มต้นในเซลล์ E79 คำแนะนำถัดไปอยู่ในเซลล์ A88",{"$nulls":3},"สิงหาคม","สัปดาห์ 1","งานล่วงเวลา","สัปดาห์ 2","งานล่วงเวลา ","สัปดาห์ 3","งานล่วงเวลา   ","สัปดาห์ 4","งานล่วงเวลา  ","สัปดาห์ 5","งานล่วงเวลา    "]
[{"$nulls":4},"วันจันทร์"]
[{"$nulls":4},"วันอังคาร"]
[{"$nulls":4},"วันพุธ"]
[{"$nulls":4},"วันพฤหัสบดี"]
[{"$nulls":4},"วันศุกร์"]
[{"$nulls":4},"วันเสาร์"]
[{"$nulls":4},"วันอาทิตย์"]
[{"$nulls":4},"ผลรวมชั่วโมงทำงานรายสัปดาห์",{"$f":"SUBTOTAL(109,สิงหาคม[สัปดาห์ 1])","v":{"v":0,"d":"0.0"}},{"$f":"SUBTOTAL(109,สิงหาคม[งานล่วงเวลา])","v":{"v":0,"d":"0.0"}},{"$f":"SUBTOTAL(109,สิงหาคม[สัปดาห์ 2])","v":{"v":0,"d":"0.0"}},{"$f":"SUBTOTAL(109,สิงหาคม[[งานล่วงเวลา ]])","v":{"v":0,"d":"0.0"}},{"$f":"SUBTOTAL(109,สิงหาคม[สัปดาห์ 3])","v":{"v":0,"d":"0.0"}},{"$f":"SUBTOTAL(109,สิงหาคม[[งานล่วงเวลา   ]])","v":{"v":0,"d":"0.0"}},{"$f":"SUBTOTAL(109,สิงหาคม[สัปดาห์ 4])","v":{"v":0,"d":"0.0"}},{"$f":"SUBTOTAL(109,สิงหาคม[[งานล่วงเวลา  ]])","v":{"v":0,"d":"0.0"}},{"$f":"SUBTOTAL(109,สิงหาคม[สัปดาห์ 5])","v":{"v":0,"d":"0.0"}},{"$f":"SUBTOTAL(109,สิงหาคม[[งานล่วงเวลา    ]])","v":{"v":0,"d":"0.0"}}]
["ผลรวมชั่วโมงทำงานปกติของเดือนสิงหาคมในเซลล์ F88 และผลรวมชั่วโมงทำงานล่วงเวลาของเดือนสิงหาคมในเซลล์ I88 จะถูกคำนวนโดยอัตโนมัติ คำแนะนำถัดไปอยู่ในเซลล์ A90",{"$nulls":3},{"$f":"TEXT(DATEVALUE(สิงหาคม[[#Headers],[สิงหาคม]]&\" \"&YEAR(TODAY())),\"mmm\")&\" ผลรวม: ชั่วโมงทำงานปกติ\"","v":"ส.ค. ผลรวม: ชั่วโมงทำงานปกติ"},{"$f":"SUM(สิงหาคม[สัปดาห์ 1],สิงหาคม[สัปดาห์ 2],สิงหาคม[สัปดาห์ 3],สิงหาคม[สัปดาห์ 4],สิงหาคม[สัปดาห์ 5])","v":{"v":0,"d":"0.0"}},{"$f":"TEXT(DATEVALUE(สิงหาคม[[#Headers],[สิงหาคม]]&\" \"&YEAR(TODAY())),\"mmm\")&\" ผลรวม: งานล่วงเวลา\"","v":"ส.ค. ผลรวม: งานล่วงเวลา"},null,{"$f":"SUM(สิงหาคม[งานล่วงเวลา],สิงหาคม[[งานล่วงเวลา ]],สิงหาคม[[งานล่วงเวลา   ]],สิงหาคม[[งานล่วงเวลา  ]],สิงหาคม[[งานล่วงเวลา    ]])","v":{"v":0,"d":"0.0"}}]
[]
["ใส่ชั่วโมงทำงานปกติและแบบล่วงเวลาในตารางเดือนกันยายนที่เริ่มต้นในเซลล์ E90 คำแนะนำถัดไปอยู่ในเซลล์ A99",{"$nulls":3},"กันยายน","สัปดาห์ 1","งานล่วงเวลา","สัปดาห์ 2","งานล่วงเวลา ","สัปดาห์ 3","งานล่วงเวลา  ","สัปดาห์ 4","งานล่วงเวลา   ","สัปดาห์ 5","งานล่วงเวลา    "]
[{"$nulls":4},"วันจันทร์"]
[{"$nulls":4},"วันอังคาร"]
[{"$nulls":4},"วันพุธ"]
[{"$nulls":4},"วันพฤหัสบดี"]
[{"$nulls":4},"วันศุกร์"]
[{"$nulls":4},"วันเสาร์"]
[{"$nulls":4},"วันอาทิตย์"]
[{"$nulls":4},"ผลรวมชั่วโมงทำงานรายสัปดาห์",{"$f":"SUBTOTAL(109,กันยายน[สัปดาห์ 1])","v":{"v":0,"d":"0.0"}},{"$f":"SUBTOTAL(109,กันยายน[งานล่วงเวลา])","v":{"v":0,"d":"0.0"}},{"$f":"SUBTOTAL(109,กันยายน[สัปดาห์ 2])","v":{"v":0,"d":"0.0"}},{"$f":"SUBTOTAL(109,กันยายน[[งานล่วงเวลา ]])","v":{"v":0,"d":"0.0"}},{"$f":"SUBTOTAL(109,กันยายน[สัปดาห์ 3])","v":{"v":0,"d":"0.0"}},{"$f":"SUBTOTAL(109,กันยายน[[งานล่วงเวลา  ]])","v":{"v":0,"d":"0.0"}},{"$f":"SUBTOTAL(109,กันยายน[สัปดาห์ 4])","v":{"v":0,"d":"0.0"}},{"$f":"SUBTOTAL(109,กันยายน[[งานล่วงเวลา   ]])","v":{"v":0,"d":"0.0"}},{"$f":"SUBTOTAL(109,กันยายน[สัปดาห์ 5])","v":{"v":0,"d":"0.0"}},{"$f":"SUBTOTAL(109,กันยายน[[งานล่วงเวลา    ]])","v":{"v":0,"d":"0.0"}}]
["ผลรวมชั่วโมงทำงานปกติของเดือนกันยายนในเซลล์ F99 และผลรวมชั่วโมงทำงานล่วงเวลาของเดือนกันยายนในเซลล์ I99 จะถูกคำนวนโดยอัตโนมัติ",{"$nulls":3},{"$f":"TEXT(DATEVALUE(กันยายน[[#Headers],[กันยายน]]&\" \"&YEAR(TODAY())),\"mmm\")&\" ผลรวม: ชั่วโมงทำงานปกติ\"","v":"ก.ย. ผลรวม: ชั่วโมงทำงานปกติ"},{"$f":"SUM(กันยายน[สัปดาห์ 1],กันยายน[สัปดาห์ 2],กันยายน[สัปดาห์ 3],กันยายน[สัปดาห์ 4],กันยายน[สัปดาห์ 5])","v":{"v":0,"d":"0.0"}},{"$f":"TEXT(DATEVALUE(กันยายน[[#Headers],[กันยายน]]&\" \"&YEAR(TODAY())),\"mmm\")&\" ผลรวม: งานล่วงเวลา\"","v":"ก.ย. ผลรวม: งานล่วงเวลา"},null,{"$f":"SUM(กันยายน[งานล่วงเวลา],กันยายน[[งานล่วงเวลา ]],กันยายน[[งานล่วงเวลา  ]],กันยายน[[งานล่วงเวลา   ]],กันยายน[[งานล่วงเวลา    ]])","v":{"v":0,"d":"0.0"}}]
["ส่วนหัวของไตรมาสที่สองที่มีเดือนตุลาคม พฤศจิกายน ธันวาคมจะอยู่ในเซลล์ E100 ",{"$nulls":3},"ตุลาคม พฤศจิกายน ธันวาคม      พนักงาน บัตรลงเวลา: รายวัน รายสัปดาห์ รายเดือน รายปี"]
["ใส่ชั่วโมงทำงานปกติและแบบล่วงเวลาในตารางเดือนตุลาคมที่เริ่มต้นในเซลล์ E101 คำแนะนำถัดไปอยู่ในเซลล์ A110",{"$nulls":3},"ตุลาคม","สัปดาห์ 1","งานล่วงเวลา","สัปดาห์ 2","งานล่วงเวลา ","สัปดาห์ 3","งานล่วงเวลา  ","สัปดาห์ 4","งานล่วงเวลา   ","สัปดาห์ 5","งานล่วงเวลา    "]
[{"$nulls":4},"วันจันทร์"]
[{"$nulls":4},"วันอังคาร"]
[{"$nulls":4},"วันพุธ"]
[{"$nulls":4},"วันพฤหัสบดี"]
[{"$nulls":4},"วันศุกร์"]
[{"$nulls":4},"วันเสาร์"]
[{"$nulls":4},"วันอาทิตย์"]
[{"$nulls":4},"ผลรวมชั่วโมงทำงานรายสัปดาห์",{"$f":"SUBTOTAL(109,ตุลาคม[สัปดาห์ 1])","v":{"v":0,"d":"0.0"}},{"$f":"SUBTOTAL(109,ตุลาคม[งานล่วงเวลา])","v":{"v":0,"d":"0.0"}},{"$f":"SUBTOTAL(109,ตุลาคม[สัปดาห์ 2])","v":{"v":0,"d":"0.0"}},{"$f":"SUBTOTAL(109,ตุลาคม[[งานล่วงเวลา ]])","v":{"v":0,"d":"0.0"}},{"$f":"SUBTOTAL(109,ตุลาคม[สัปดาห์ 3])","v":{"v":0,"d":"0.0"}},{"$f":"SUBTOTAL(109,ตุลาคม[[งานล่วงเวลา  ]])","v":{"v":0,"d":"0.0"}},{"$f":"SUBTOTAL(109,ตุลาคม[สัปดาห์ 4])","v":{"v":0,"d":"0.0"}},{"$f":"SUBTOTAL(109,ตุลาคม[[งานล่วงเวลา   ]])","v":{"v":0,"d":"0.0"}},{"$f":"SUBTOTAL(109,ตุลาคม[สัปดาห์ 5])","v":{"v":0,"d":"0.0"}},{"$f":"SUBTOTAL(109,ตุลาคม[[งานล่วงเวลา    ]])","v":{"v":0,"d":"0.0"}}]
["ผลรวมชั่วโมงทำงานปกติของเดือนตุลาคมอยู่ในเซลล์ F110 และผลรวมชั่วโมงทำงานล่วงเวลาของเดือนตุลาคมอยู่ในเซลล์ I110 จะถูกคำนวนโดยอัตโนมัติ คำแนะนำถัดไปอยู่ในเซลล์ A112",{"$nulls":3},{"$f":"TEXT(DATEVALUE(ตุลาคม[[#Headers],[ตุลาคม]]&\" \"&YEAR(TODAY())),\"mmm\")&\" ผลรวม: ชั่วโมงทำงานปกติ\"","v":"ต.ค. ผลรวม: ชั่วโมงทำงานปกติ"},{"$f":"SUM(ตุลาคม[สัปดาห์ 1],ตุลาคม[สัปดาห์ 2],ตุลาคม[สัปดาห์ 3],ตุลาคม[สัปดาห์ 4],ตุลาคม[สัปดาห์ 5])","v":{"v":0,"d":"0.0"}},{"$f":"TEXT(DATEVALUE(ตุลาคม[[#Headers],[ตุลาคม]]&\" \"&YEAR(TODAY())),\"mmm\")&\" ผลรวม: งานล่วงเวลา\"","v":"ต.ค. ผลรวม: งานล่วงเวลา"},null,{"$f":"SUM(ตุลาคม[งานล่วงเวลา],ตุลาคม[[งานล่วงเวลา ]],ตุลาคม[[งานล่วงเวลา  ]],ตุลาคม[[งานล่วงเวลา   ]],ตุลาคม[[งานล่วงเวลา    ]])","v":{"v":0,"d":"0.0"}}]
[]
["ใส่ชั่วโมงทำงานปกติและแบบล่วงเวลาในตารางเดือนพฤศจิกายนที่เริ่มต้นในเซลล์ E112 คำแนะนำถัดไปอยู่ในเซลล์ A121",{"$nulls":3},"พฤศจิกายน","สัปดาห์ 1","งานล่วงเวลา","สัปดาห์ 2","งานล่วงเวลา ","สัปดาห์ 3","งานล่วงเวลา  ","สัปดาห์ 4","งานล่วงเวลา    ","สัปดาห์ 5","งานล่วงเวลา     "]
[{"$nulls":4},"วันจันทร์"]
[{"$nulls":4},"วันอังคาร"]
[{"$nulls":4},"วันพุธ"]
[{"$nulls":4},"วันพฤหัสบดี"]
[{"$nulls":4},"วันศุกร์"]
[{"$nulls":4},"วันเสาร์"]
[{"$nulls":4},"วันอาทิตย์"]
[{"$nulls":4},"ผลรวมชั่วโมงทำงานรายสัปดาห์",{"$f":"SUBTOTAL(109,พฤศจิกายน[สัปดาห์ 1])","v":{"v":0,"d":"0.0"}},{"$f":"SUBTOTAL(109,พฤศจิกายน[งานล่วงเวลา])","v":{"v":0,"d":"0.0"}},{"$f":"SUBTOTAL(109,พฤศจิกายน[สัปดาห์ 2])","v":{"v":0,"d":"0.0"}},{"$f":"SUBTOTAL(109,พฤศจิกายน[[งานล่วงเวลา ]])","v":{"v":0,"d":"0.0"}},{"$f":"SUBTOTAL(109,พฤศจิกายน[สัปดาห์ 3])","v":{"v":0,"d":"0.0"}},{"$f":"SUBTOTAL(109,พฤศจิกายน[[งานล่วงเวลา  ]])","v":{"v":0,"d":"0.0"}},{"$f":"SUBTOTAL(109,พฤศจิกายน[สัปดาห์ 4])","v":{"v":0,"d":"0.0"}},{"$f":"SUBTOTAL(109,พฤศจิกายน[[งานล่วงเวลา    ]])","v":{"v":0,"d":"0.0"}},{"$f":"SUBTOTAL(109,พฤศจิกายน[สัปดาห์ 5])","v":{"v":0,"d":"0.0"}},{"$f":"SUBTOTAL(109,พฤศจิกายน[[งานล่วงเวลา     ]])","v":{"v":0,"d":"0.0"}}]
["ผลรวมชั่วโมงทำงานปกติของเดือนพฤศจิกายนในเซลล์ F121 และผลรวมชั่วโมงทำงานล่วงเวลาของเดือนพฤศจิกายนในเซลล์ I121 จะถูกคำนวนโดยอัตโนมัติ คำแนะนำถัดไปอยู่ในเซลล์ A123",{"$nulls":3},{"$f":"TEXT(DATEVALUE(พฤศจิกายน[[#Headers],[พฤศจิกายน]]&\" \"&YEAR(TODAY())),\"mmm\")&\" ผลรวม: ชั่วโมงทำงานปกติ\"","v":"พ.ย. ผลรวม: ชั่วโมงทำงานปกติ"},{"$f":"SUM(พฤศจิกายน[สัปดาห์ 1],พฤศจิกายน[สัปดาห์ 2],พฤศจิกายน[สัปดาห์ 3],พฤศจิกายน[สัปดาห์ 4],พฤศจิกายน[สัปดาห์ 5])","v":{"v":0,"d":"0.0"}},{"$f":"TEXT(DATEVALUE(พฤศจิกายน[[#Headers],[พฤศจิกายน]]&\" \"&YEAR(TODAY())),\"mmm\")&\" ผลรวม: งานล่วงเวลา\"","v":"พ.ย. ผลรวม: งานล่วงเวลา"},null,{"$f":"SUM(พฤศจิกายน[งานล่วงเวลา],พฤศจิกายน[[งานล่วงเวลา ]],พฤศจิกายน[[งานล่วงเวลา  ]],พฤศจิกายน[[งานล่วงเวลา    ]],พฤศจิกายน[[งานล่วงเวลา     ]])","v":{"v":0,"d":"0.0"}}]
[]
["ใส่ชั่วโมงทำงานปกติและแบบล่วงเวลาในตารางเดือนธันวาคมที่เริ่มต้นในเซลล์ E123 คำแนะนำถัดไปอยู่ในเซลล์ A132",{"$nulls":3},"ธันวาคม","สัปดาห์ 1","งานล่วงเวลา","สัปดาห์ 2","งานล่วงเวลา ","สัปดาห์ 3","งานล่วงเวลา  ","สัปดาห์ 4","งานล่วงเวลา   ","สัปดาห์ 5","งานล่วงเวลา    "]
[{"$nulls":4},"วันจันทร์"]
[{"$nulls":4},"วันอังคาร"]
[{"$nulls":4},"วันพุธ"]
[{"$nulls":4},"วันพฤหัสบดี"]
[{"$nulls":4},"วันศุกร์"]
[{"$nulls":4},"วันเสาร์"]
[{"$nulls":4},"วันอาทิตย์"]
[{"$nulls":4},"ผลรวมชั่วโมงทำงานรายสัปดาห์",{"$f":"SUBTOTAL(109,ธันวาคม[สัปดาห์ 1])","v":{"v":0,"d":"0.0"}},{"$f":"SUBTOTAL(109,ธันวาคม[งานล่วงเวลา])","v":{"v":0,"d":"0.0"}},{"$f":"SUBTOTAL(109,ธันวาคม[สัปดาห์ 2])","v":{"v":0,"d":"0.0"}},{"$f":"SUBTOTAL(109,ธันวาคม[[งานล่วงเวลา ]])","v":{"v":0,"d":"0.0"}},{"$f":"SUBTOTAL(109,ธันวาคม[สัปดาห์ 3])","v":{"v":0,"d":"0.0"}},{"$f":"SUBTOTAL(109,ธันวาคม[[งานล่วงเวลา  ]])","v":{"v":0,"d":"0.0"}},{"$f":"SUBTOTAL(109,ธันวาคม[สัปดาห์ 4])","v":{"v":0,"d":"0.0"}},{"$f":"SUBTOTAL(109,ธันวาคม[[งานล่วงเวลา   ]])","v":{"v":0,"d":"0.0"}},{"$f":"SUBTOTAL(109,ธันวาคม[สัปดาห์ 5])","v":{"v":0,"d":"0.0"}},{"$f":"SUBTOTAL(109,ธันวาคม[[งานล่วงเวลา    ]])","v":{"v":0,"d":"0.0"}}]
["ผลรวมชั่วโมงทำงานปกติของเดือนธันวาคมในเซลล์ F132 และผลรวมชั่วโมงทำงานล่วงเวลาของเดือนธันวาคมในเซลล์ I132 จะถูกคำนวนโดยอัตโนมัติ",{"$nulls":3},{"$f":"TEXT(DATEVALUE(ธันวาคม[[#Headers],[ธันวาคม]]&\" \"&YEAR(TODAY())),\"mmm\")&\" ผลรวม: ชั่วโมงทำงานปกติ\"","v":"ธ.ค. ผลรวม: ชั่วโมงทำงานปกติ"},{"$f":"SUM(ธันวาคม[สัปดาห์ 1],ธันวาคม[สัปดาห์ 2],ธันวาคม[สัปดาห์ 3],ธันวาคม[สัปดาห์ 4],ธันวาคม[สัปดาห์ 5])","v":{"v":0,"d":"0.0"}},{"$f":"TEXT(DATEVALUE(ธันวาคม[[#Headers],[ธันวาคม]]&\" \"&YEAR(TODAY())),\"mmm\")&\" ผลรวม: งานล่วงเวลา\"","v":"ธ.ค. ผลรวม: งานล่วงเวลา"},null,{"$f":"SUM(G124:G130,I124:I130,K124:K130,M124:M130,O124:O130)","v":{"v":0,"d":"0.0"}}]